[Event "Pashayeva Memorial Rapid 2025"]
[Site "Baku"]
[Date "2025.03.03"]
[Round "6.3"]
[White "Balajayeva, Khanim"]
[Black "Yakubbaeva, Nilufar"]
[Result "1-0"]
[Annotator "TA"]
[ECO "B12"]
[WhiteElo "2355"]
[BlackElo "2187"]
[PlyCount "85"]
[EventDate "2025.03.01"]
[EventType "tourn"]
[EventCountry "AZE"]
[SourceTitle "playchess.com"]
[Source "ChessBase"]
[SourceQuality "1"]
[TimeControl "900+10"]

{[%evp 11,85,22,41,23,37,35,74,2,6,0,8,1,12,12,33,37,54,39,47,29,36,29,41,-12,-3,0,0,0,34,0,183,181,224,92,81,0,160,158,1423,417,426,204,210,212,212,0,693,683,691,650,657,595,582,545,731,727,697,703,787,789,807,784,875,902,898,862,925,865,873,827,1058,1034,1970,1302,6837,6512]} 1. e4 {[%emt 0:00:02]} c6 {[%emt 0:00:02]} 2. d4 {[%emt 0:00:06]} d5 {[%emt 0:00:01]} 3. e5 {[%emt 0:00:02]} Bf5 {[%emt 0:00:02]} 4. Nf3 {[%emt 0:00:03]} e6 {[%emt 0:00:01]} 5. Be2 {[%emt 0:00:04]} Nd7 {[%emt 0:00:23]} 6. O-O {[%emt 0:00:16]} h6 {[%emt 0:00:24]} 7. a4 {[%emt 0:00:14] B12: Caro-Kann: Advance Variation.} Ne7 {[%emt 0:00:21]} 8. a5 {[%emt 0:00:05]} a6 {[%emt 0:00:13]} 9. Nbd2 {[%emt 0:01:22]} (9. b4 $16) 9... c5 $11 {[%emt 0:00:07]} 10. c4 {[%emt 0:03:15]} Nc6 {[%emt 0:01:57]} 11. cxd5 {[%emt 0:00:07]} exd5 {[%emt 0:00:11]} 12. dxc5 {[%emt 0:01:38]} Nxc5 {[%emt 0:01:12][%cal Od5d4]} (12... Bxc5 $5 13. Nb3 O-O $11) 13. Nb3 {[%emt 0:02:46]} Be7 $146 {[%emt 0:02:29]} (13... Nxb3 14. Qxb3 Bb4 15. Bd2 Bxd2 16. Nxd2 Nxa5 17. Qb4 b6 18. Rfc1 Be6 19. Bxa6 Rxa6 {1-0 Koshulyan,E (2136)-Zheenbekov,N (2137) Titled Tuesday intern op 13th Feb Early blitz 2024 (4)}) 14. Nbd4 {[%emt 0:00:32]} Be4 {[%emt 0:01:32]} 15. Nxc6 {[%emt 0:00:58]} bxc6 {[%emt 0:00:02]} 16. Nd4 {[%emt 0:00:07][%cal Ob2b4]} Qc7 {[%emt 0:01:06][%cal Oe8g8]} 17. f4 {[%emt 0:01:44]} (17. Be3 $14) 17... O-O {[%emt 0:00:18]} 18. f5 {[%emt 0:00:27]} f6 $1 {[%emt 0:02:58]} (18... Qxe5 $6 19. Nxc6 Qf6 20. Nxe7+ Qxe7 21. f6 $16) 19. e6 {[%emt 0:01:07]} Nb7 {[%emt 0:00:30][%cal Oe7d6]} 20. Bf4 {[%emt 0:00:19]} Qc8 {[%emt 0:01:15]} (20... Bd6 $11 21. Bxd6 Qxd6) 21. Bf3 $18 {[%emt 0:00:46] and Bxe4 would now be decisive} Rd8 {[%emt 0:01:42]} 22. Bxe4 {[%emt 0:02:03]} (22. Rc1 $18 {has better winning chances.} c5 23. Bxe4 dxe4 24. Qh5) 22... dxe4 $16 {[%emt 0:00:02] [#]} 23. Kh1 {[%emt 0:00:22] White has more active pieces.} (23. Be3 $1 $16) 23... c5 $2 {[%emt 0:00:18]} (23... Bc5 $11) 24. Qh5 $1 {[%emt 0:00:03][%cal Of4h6]} cxd4 $2 {[%emt 0:00:41]} (24... Rxd4 $16 25. Qf7+ Kh7 26. Qxe7 Qc6 27. Bxh6 Kxh6) 25. Qf7+ {[%emt 0:00:01]} (25. Bxh6 $142 {White wants to mate with Qf7+.} Bf8 26. Bxg7 Qxe6 27. fxe6 (27. Qh8+ Kf7 $18) 27... Bxg7 28. Qf7+ (28. e7 Nd6 $18) 28... Kh8 29. Rf4 (29. Qxb7 Rab8 $18) 29... Rd5 30. Rh4+ (30. Qxb7 Kh7 $18) 30... Rh5 31. Rxh5+ Bh6 32. Rxh6#) 25... Kh8 $18 {[%emt 0:00:02]} 26. Qxe7 {[%emt 0:00:01]} (26. Bxh6 $142 gxh6 27. Qxe7) 26... Re8 {[%emt 0:00:51]} 27. Qf7 $40 {[%emt 0:00:02][%cal Of4h6][%mdl 128] White attacks with force.} Rf8 {[%emt 0:00:32] [#]} 28. Qe7 {[%emt 0:00:46]} (28. Qh5 $1 $18) 28... e3 $2 {[%emt 0:00:19][%mdl 8192]} (28... Re8 $11 29. Qb4 Nc5) 29. Rfc1 {[%emt 0:00:14] White is clearly winning.} Qe8 {[%emt 0:00:15]} 30. Qxb7 {[%emt 0:00:02]} e2 {[%emt 0:00:03]} 31. Qe4 {[%emt 0:00:04]} Qb5 {[%emt 0:00:04]} 32. Qxd4 {[%emt 0:00:25]} Qxf5 {[%emt 0:00:03]} 33. e7 {[%emt 0:00:14]} Rfe8 {[%emt 0:00:02]} 34. Bd6 {[%emt 0:00:00]} Qb5 {[%emt 0:00:07]} 35. Re1 {[%emt 0:00:06]} Rac8 {[%emt 0:00:06][%cal Ba8c8,Bc8c6,Bc6e6,Be6e4][%mdl 32]} 36. b4 {[%emt 0:00:28]} Rc6 {[%emt 0:00:09]} 37. Bc5 {[%emt 0:00:05]} Re6 {[%emt 0:00:07]} 38. h3 {[%emt 0:00:02]} Qc6 {[%emt 0:00:11]} 39. Rac1 {[%emt 0:00:07][%cal Ba1c1,Bc1c2,Bc2e2][%mdl 32]} Re4 {[%emt 0:00:05]} 40. Qf2 {[%emt 0:00:04]} Qe6 {[%emt 0:00:50]} 41. Qf3 {[%emt 0:00:08]} g5 {[%emt 0:00:08]} 42. Rc2 {[%emt 0:00:04][%cal Rc2e2]} f5 {[%emt 0:00:18]} 43. Rcxe2 {[%emt 0:00:05] Weighted Error Value: White=0.67/Black=0.58  Loses game:     	---       	Black=3      Missed win:     	White=1     	---        Mistake:       	White=5     	Black=1      Inaccurate:     	White=1     	Black=3      OK:         	White=11    	Black=6      Best:        	White=1     	Black=3      Strong:       	White=1     	Black=1} 1-0

[Event "Pashayeva Memorial Rapid 2025"]
[Site "Baku"]
[Date "2025.03.03"]
[Round "6.4"]
[White "Mammadova, Gulnar"]
[Black "Mammadzada, Gunay"]
[Result "0-1"]
[Annotator "TA"]
[ECO "C93"]
[WhiteElo "2333"]
[BlackElo "2412"]
[PlyCount "82"]
[EventDate "2025.03.01"]
[EventType "tourn"]
[EventCountry "AZE"]
[SourceTitle "playchess.com"]
[Source "ChessBase"]
[SourceQuality "1"]
[TimeControl "900+10"]

{[%evp 27,82,46,43,53,70,78,83,87,83,0,31,12,98,97,166,154,169,54,61,66,60,63,63,51,70,66,59,50,50,47,45,18,7,15,41,-50,-56,-78,-50,-96,-78,-112,-41,-24,-29,-80,-70,-54,-20,-92,-95,-197,-197,-356,-173,-1648,-1621]} 1. e4 {[%emt 0:00:02]} e5 {[%emt 0:00:01]} 2. Nf3 {[%emt 0:00:02]} Nc6 {[%emt 0:00:01]} 3. Bb5 {[%emt 0:00:03]} a6 {[%emt 0:00:02]} 4. Ba4 {[%emt 0:00:03]} Nf6 {[%emt 0:00:02]} 5. O-O {[%emt 0:00:03]} Be7 {[%emt 0:00:03]} 6. Re1 {[%emt 0:00:13]} b5 {[%emt 0:00:06]} 7. Bb3 {[%emt 0:00:02]} O-O {[%emt 0:00:02]} 8. h3 {[%emt 0:00:18]} d6 {[%emt 0:01:14]} 9. c3 {[%emt 0:00:53]} Bb7 {[%emt 0:00:30]} 10. d4 {[%emt 0:00:39]} Re8 {[%emt 0:00:02]} 11. Nbd2 {[%emt 0:03:22]} h6 {[%emt 0:00:20]} 12. Nf1 {[%emt 0:00:14]} Bf8 {[%emt 0:00:37]} 13. Ng3 {[%emt 0:00:06]} Na5 {[%emt 0:02:33]} 14. Bc2 {[%emt 0:00:03]} g6 {[%emt 0:00:11]} 15. b3 {[%emt 0:01:36] C93: Closed Ruy Lopez: Smyslov Variation.} Bg7 {[%emt 0:00:02]} 16. Bd2 {[%emt 0:00:33]} exd4 {[%emt 0:02:51]} 17. cxd4 {[%emt 0:00:12] White is better.} c5 {[%emt 0:00:02]} 18. Bc3 $146 {[%emt 0:00:46]} (18. d5 $16) (18. d5 Nd7 19. Rb1 Rc8 20. Bf4 Ne5 21. Nxe5 dxe5 22. Be3 Kh7 23. Qe2 Ba8 24. f4 exf4 25. Bxf4 Bxd5 26. Rbd1 Qh4 27. Qf3 Be6 28. Nf5 Bxf5 {0-1 Timmermans,I (2213)-Suarez Pousa,D (2315) Paris-ch op 1999 (9)}) 18... b4 {[%emt 0:00:21]} 19. Bd2 {[%emt 0:00:16]} Qb6 {[%emt 0:02:53]} (19... cxd4 $11 20. Nxd4 d5) 20. d5 {[%emt 0:01:14]} c4 {[%emt 0:00:02]} (20... Nd7 $16) 21. Be3 $18 {[%emt 0:00:10]} Qc7 {[%emt 0:00:07]} 22. bxc4 {[%emt 0:00:18]} (22. Rc1 $18) 22... Nxc4 $14 {[%emt 0:00:04]} 23. Bd4 {[%emt 0:00:05]} Ne5 {[%emt 0:01:17]} 24. Nxe5 {[%emt 0:01:03]} dxe5 {[%emt 0:00:01]} 25. Be3 {[%emt 0:00:01]} Rec8 {[%emt 0:00:14]} 26. Rc1 {[%emt 0:00:24]} Qd6 {[%emt 0:01:10]} 27. Qd2 {[%emt 0:00:26]} h5 {[%emt 0:00:09]} 28. Bd3 {[%emt 0:00:25]} a5 {[%emt 0:00:29]} 29. Rxc8+ {[%emt 0:00:45]} Rxc8 {[%emt 0:00:00]} 30. Rc1 {[%emt 0:00:01]} Bf8 {[%emt 0:00:59]} 31. f4 {[%emt 0:01:30]} ({White should play} 31. Ne2 $14) 31... Nd7 $15 {[%emt 0:01:23]} 32. Rxc8 {[%emt 0:00:49]} Bxc8 {[%emt 0:00:01]} 33. Ne2 {[%emt 0:00:11]} (33. fxe5 $15 Nxe5 (33... Qxe5 34. Ne2 $15) 34. Be2) 33... Ba6 $17 {[%emt 0:00:57]} 34. Nc1 {[%emt 0:01:23]} a4 {[%emt 0:00:15]} (34... exf4 $17 35. Bxf4 Qb6+ 36. Kh1 Bxd3 37. Nxd3 a4) 35. fxe5 $1 $15 {[%emt 0:01:06]} Nxe5 {[%emt 0:00:08]} 36. Bxa6 {[%emt 0:00:03]} (36. Bd4 $1 $11 {remains equal.} Nxd3 37. Nxd3) 36... Qxa6 $17 {[%emt 0:00:30]} 37. Bd4 {[%emt 0:00:02]} Qd6 {[%emt 0:00:33]} (37... Qf6 $5) 38. Qc2 {[%emt 0:00:38] [#]} (38. Nd3 $11 Nxd3 39. Qxd3) 38... Bg7 $1 $36 {[%emt 0:00:25][%cal Oe5f3][%mdl 2048] ...Nf3+! would now be deadly. Keeping White busy.} 39. Ne2 {[%emt 0:00:29]} (39. Qxa4 $2 Nf3+ 40. gxf3 Qg3+ (40... Bxd4+ 41. Kg2 $17) 41. Kf1 Bxd4 (41... Qxh3+ 42. Ke1 $17) 42. Qe8+ Kg7 $19) (39. Be3 $17) 39... Qa6 $19 {[%emt 0:00:07][%cal Ob4b3]} 40. Kf1 $2 {[%emt 0:00:41]} (40. Kh1 {might work better.}) 40... Nc4 {[%emt 0:00:25]} (40... b3 $142 41. axb3 a3) 41. Bxg7 $2 {[%emt 0:00:22]} (41. Qd3 b3 42. axb3 axb3 43. e5) 41... Ne3+ {[%emt 0:00:02] What a bad dream for White.   Weighted Error Value: White=0.53/Black=0.23 (precise)   Mistake:       	White=9     	Black=4      Inaccurate:     	White=2     	Black=4      OK:         	White=6     	Black=4      Best:        	---       	Black=3      Strong:       	White=1     	Black=1} ({Weaker is} 41... Kxg7 42. Kg1 $17) 0-1

[Event "Pashayeva Memorial Rapid 2025"]
[Site "Baku"]
[Date "2025.03.03"]
[Round "6.5"]
[White "Serikbay, Assel"]
[Black "Beydullayeva, Govhar"]
[Result "1-0"]
[Annotator "TA"]
[ECO "D37"]
[WhiteElo "2216"]
[BlackElo "2404"]
[PlyCount "89"]
[EventDate "2025.03.01"]
[EventType "tourn"]
[EventCountry "AZE"]
[SourceTitle "playchess.com"]
[Source "ChessBase"]
[SourceQuality "1"]
[TimeControl "900+10"]

{[%evp 13,88,8,10,11,11,12,12,5,14,7,8,7,8,0,0,0,12,0,0,-1,0,0,0,0,0,0,0,0,0,0,0,0,0,0,7,5,108,98,93,-150,-121,-32,0,-66,-14,-336,-316,-311,-82,-92,-103,-218,63,0,63,49,454,439,29963,29964,29966,29967,5365,1465,5293,1272,29990,29991,29991,29992,29992,29993,29996,29997,29997,29998,29999]} 1. d4 {[%emt 0:00:04]} Nf6 {[%emt 0:00:01]} 2. c4 {[%emt 0:00:01]} e6 {[%emt 0:00:01]} 3. Nf3 {[%emt 0:00:05]} d5 {[%emt 0:00:02]} 4. Nc3 {[%emt 0:00:01]} Be7 {[%emt 0:00:01]} 5. Bf4 {[%emt 0:00:05]} O-O {[%emt 0:00:05]} 6. e3 {[%emt 0:00:02]} Nbd7 {[%emt 0:00:04]} 7. c5 {[%emt 0:00:01]} Nh5 {[%emt 0:00:11]} 8. Bd3 {[%emt 0:00:03] D37: Queen's Gambit Declined: 5 Bf4.} Nxf4 {[%emt 0:00:02]} 9. exf4 {[%emt 0:00:02]} b6 {[%emt 0:00:11]} 10. b4 {[%emt 0:00:02] The position is equal.} a5 {[%emt 0:00:12]} 11. a3 {[%emt 0:00:04]} c6 {[%emt 0:00:27]} 12. O-O {[%emt 0:00:56]} Ba6 {[%emt 0:00:01]} 13. Bxa6 {[%emt 0:01:35]} Rxa6 {[%emt 0:00:02]} 14. Qd3 {[%emt 0:00:02]} Qa8 {[%emt 0:01:18]} 15. Rab1 {[%emt 0:01:06]} axb4 {[%emt 0:00:18]} 16. axb4 {[%emt 0:00:01]} Ra3 {[%emt 0:01:32]} 17. Rfc1 {[%emt 0:05:14][%cal Bf1c1,Bc1b1,Bb1b3][%mdl 32]} g6 $146 {[%emt 0:03:30]} (17... Qb7 18. g3 Rfa8 19. Qc2 bxc5 20. bxc5 Qa6 21. Kg2 Bd8 22. Qe2 Qa5 23. Nd1 g6 {1-0 Ter Sahakyan,S (2609)-Javakhadze,Z (2461) Titled Tuesday intern op 01st Aug Early blitz 2023 (10)}) 18. g3 {[%emt 0:00:55]} bxc5 {[%emt 0:02:20]} 19. bxc5 {[%emt 0:00:06]} Rb8 {[%emt 0:00:31]} 20. Rxb8+ {[%emt 0:00:21]} Qxb8 {[%emt 0:00:27]} 21. Rb1 {[%emt 0:00:10]} Qa7 {[%emt 0:00:44]} 22. Qc2 {[%emt 0:02:26]} Bf6 {[%emt 0:05:47]} 23. Ne5 {[%emt 0:00:57]} Bxe5 {[%emt 0:00:05]} 24. fxe5 {[%emt 0:00:01]} Nxe5 {[%emt 0:00:25]} 25. dxe5 $16 {[%emt 0:00:05]} Qxc5 {[%emt 0:00:01]} 26. Rb3 {[%emt 0:01:46] [#]} (26. Rc1 $16) 26... Ra1+ $1 $17 {[%emt 0:00:41] Black attacks} 27. Kg2 {[%emt 0:00:01]} d4 {[%emt 0:00:05][%csl LRc3,LRe5][%cal Oc5c4] Threatens to win with ...Qc4!.} 28. Qd2 {[%emt 0:01:49]} (28. Qb2 $1 $11 dxc3 29. Qxc3 (29. Qxa1 $2 Qd5+ 30. Kf1 Qh1+ 31. Ke2 Qxa1 $19) (29. Rb8+ Kg7 $11) 29... Qd5+ 30. Qf3) 28... Qxe5 {[%emt 0:00:05]} (28... dxc3 $15 29. Qd8+ Qf8 (29... Kg7 30. Qf6+ Kh6 31. Rxc3 $11) 30. Qxf8+ Kxf8 31. Rxc3 Ra6) 29. Ne2 $2 {[%emt 0:00:42][%mdl 8192]} (29. f4 $1 $11 {and White is okay.} Qc5 30. Qb2 (30. Ne4 $2 Qd5 $19)) 29... Qd5+ $19 {[%emt 0:00:11]} 30. Rf3 {[%emt 0:00:01]} c5 {[%emt 0:00:36]} (30... e5 $19 {has better winning chances.} 31. Qb4 c5) 31. Nf4 {[%emt 0:00:14]} Qe4 {[%emt 0:00:08][%mdl 1024] Black has strong compensation.} (31... Qa2 {simplifies} 32. Qxa2 Rxa2 33. Rb3 c4) 32. Qe2 {[%emt 0:00:48]} (32. Qb2 $17 Qb1 33. Qxb1 Rxb1 34. Ra3) 32... Qc6 $2 {[%emt 0:00:08]} (32... Qxe2 $19 33. Nxe2 e5) 33. Nd3 {[%emt 0:00:19]} (33. Qe5 $14) 33... c4 {[%emt 0:00:15]} ({Better is} 33... Ra3 $11) 34. Ne5 $1 $36 {[%emt 0:00:01][%csl LRc4,LRc6,LRf7][%mdl 2048] White has good play.} d3 $2 {[%emt 0:00:02][%mdl 8192]} (34... Qd5 $14) 35. Qb2 $18 {[%emt 0:00:17]} (35. Qxd3 $2 cxd3 36. Nxc6 d2 $19) 35... d2 {[%emt 0:00:18]} (35... Qa8 $18 36. Nxf7 (36. Nxc4 Rg1+ 37. Kxg1 Qxf3 $18) 36... Rg1+ 37. Kxg1 Qxf3) 36. Qxa1 {[%emt 0:00:06]} Qd5 {[%emt 0:00:03]} 37. Nxf7 {[%emt 0:00:11][%csl Gf7][%cal Ra1h8]} e5 {[%emt 0:00:01]} 38. Qd1 {[%emt 0:00:30][%cal Of7e5] and Nxe5! should not be overlooked} ({Stronger than} 38. Qxe5 Qxe5 39. Nxe5 d1=Q 40. Nxc4 Qd5 $11) ({Weaker is} 38. Nh6+ Kg7 $16) 38... c3 {[%emt 0:00:02] [#]} 39. Nxe5 $1 {[%emt 0:00:11]} c2 {[%emt 0:00:15]} (39... Kg7 40. Ng4) 40. Qxc2 {[%emt 0:00:01] White mates.} d1=Q {[%emt 0:00:01]} 41. Qc8+ {[%emt 0:00:01]} Qd8 {[%emt 0:00:25]} 42. Qe6+ {[%emt 0:00:01]} Kg7 {[%emt 0:00:05]} 43. Rf7+ {[%emt 0:00:12]} Kh8 {[%emt 0:00:05] [#]} 44. Nxg6+ $1 {[%emt 0:00:06][%mdl 512]} Kg8 {[%emt 0:00:02]} (44... hxg6 45. Qe5+) 45. Rd7# {[%emt 0:00:05] Weighted Error Value: White=0.69/Black=0.68  Loses game:     	White=1     	Black=1      Missed win:     	---       	Black=2      Mistake:       	White=4     	Black=4      Inaccurate:     	---       	Black=1      OK:         	White=8     	Black=9      Best:        	White=3     	Black=2      Strong:       	White=1     	Black=1} 1-0